[Event "*** Qualifier 3: Titled Tuesday 3|2 Blitz"]
[Site "Chess.com"]
[Date "2017.04.18"]
[Round "6"]
[White "djogrodek1"]
[Black "LuckyTiger"]
[Result "1-0"]
[WhiteElo "2417"]
[BlackElo "2577"]
[TimeControl "180+2"]
[EndTime "14:23:51 PDT"]
[Termination "djogrodek1 won by checkmate"]

1. e4 {[%clk 0:03:02]} 1... c5 {[%clk 0:02:59.7]} 2. Nf3 {[%clk 0:03:03]} 2...
d6 {[%clk 0:03:01.1]} 3. Bb5+ {[%clk 0:03:04.5]} 3... Nd7 {[%clk 0:03:01.4]} 4.
O-O {[%clk 0:03:05.2]} 4... Nf6 {[%clk 0:02:58.5]} 5. Re1 {[%clk 0:03:05.6]}
5... e5 {[%clk 0:02:54.8]} 6. c3 {[%clk 0:03:06.5]} 6... Be7 {[%clk 0:02:54.1]}
7. d4 {[%clk 0:03:07.4]} 7... O-O {[%clk 0:02:53]} 8. Bg5 {[%clk 0:03:08.4]}
8... h6 {[%clk 0:02:45]} 9. Bh4 {[%clk 0:03:08.6]} 9... a6 {[%clk 0:02:45.2]}
10. Bf1 {[%clk 0:02:57.7]} 10... Re8 {[%clk 0:02:37.5]} 11. Nbd2 {[%clk
0:02:57.8]} 11... Qc7 {[%clk 0:02:37.8]} 12. Nc4 {[%clk 0:02:49.7]} 12... Bf8
{[%clk 0:02:29.8]} 13. a4 {[%clk 0:02:42.5]} 13... b6 {[%clk 0:02:29.6]} 14. d5
{[%clk 0:02:40.6]} 14... Nh7 {[%clk 0:02:21.5]} 15. Nfd2 {[%clk 0:02:35.4]}
15... g6 {[%clk 0:02:20.2]} 16. Bd3 {[%clk 0:02:32.2]} 16... h5 {[%clk
0:02:20.6]} 17. Rb1 {[%clk 0:02:18.7]} 17... Bh6 {[%clk 0:02:04.2]} 18. f3
{[%clk 0:02:18.5]} 18... b5 {[%clk 0:02:00.7]} 19. axb5 {[%clk 0:02:13.4]} 19...
axb5 {[%clk 0:02:02.6]} 20. Na3 {[%clk 0:02:15]} 20... c4 {[%clk 0:02:04.1]} 21.
Bf1 {[%clk 0:02:11.3]} 21... Nc5 {[%clk 0:01:56.1]} 22. Bf2 {[%clk 0:02:06.4]}
22... Bd7 {[%clk 0:01:56.5]} 23. Nc2 {[%clk 0:01:50.8]} 23... Ra4 {[%clk
0:01:27.9]} 24. Nb4 {[%clk 0:01:46.5]} 24... Rea8 {[%clk 0:01:29.4]} 25. Qe2
{[%clk 0:01:03.7]} 25... Qc8 {[%clk 0:00:53]} 26. Be3 {[%clk 0:01:00.2]} 26...
Qf8 {[%clk 0:00:39.1]} 27. Red1 {[%clk 0:00:45.7]} 27... h4 {[%clk 0:00:39]} 28.
Qf2 {[%clk 0:00:37.6]} 28... Nf6 {[%clk 0:00:39.9]} 29. Re1 {[%clk 0:00:35.5]}
29... Bxe3 {[%clk 0:00:32.7]} 30. Qxe3 {[%clk 0:00:37.4]} 30... Nh5 {[%clk
0:00:34.3]} 31. Qg5 {[%clk 0:00:34.7]} 31... Qd8 {[%clk 0:00:32.5]} 32. Qxd8+
{[%clk 0:00:35.4]} 32... Rxd8 {[%clk 0:00:34.4]} 33. Ra1 {[%clk 0:00:36.4]}
33... Rda8 {[%clk 0:00:35.7]} 34. Rxa4 {[%clk 0:00:30.4]} 34... Rxa4 {[%clk
0:00:37.6]} 35. Kf2 {[%clk 0:00:31.7]} 35... f5 {[%clk 0:00:39]} 36. Ke3 {[%clk
0:00:29.3]} 36... Kf7 {[%clk 0:00:37.7]} 37. Be2 {[%clk 0:00:28.1]} 37... Na6
{[%clk 0:00:35.6]} 38. Nxa6 {[%clk 0:00:27.5]} 38... Rxa6 {[%clk 0:00:37.5]} 39.
Rb1 {[%clk 0:00:23.1]} 39... Ra2 {[%clk 0:00:32.2]} 40. Kf2 {[%clk 0:00:18.8]}
40... g5 {[%clk 0:00:25.5]} 41. Ke3 {[%clk 0:00:17.3]} 41... Kg6 {[%clk
0:00:25.1]} 42. Bf1 {[%clk 0:00:17.6]} 42... Nf6 {[%clk 0:00:17.8]} 43. Be2
{[%clk 0:00:17.9]} 43... g4 {[%clk 0:00:17.7]} 44. Bd1 {[%clk 0:00:15.7]} 44...
h3 {[%clk 0:00:14.7]} 45. gxh3 {[%clk 0:00:16.5]} 45... gxf3 {[%clk 0:00:15.8]}
46. Bxf3 {[%clk 0:00:18.4]} 46... f4+ {[%clk 0:00:15.5]} 47. Kf2 {[%clk
0:00:18.5]} 47... Bxh3 {[%clk 0:00:17.1]} 48. Rg1+ {[%clk 0:00:19]} 48... Kf7
{[%clk 0:00:17.7]} 49. Rb1 {[%clk 0:00:20.9]} 49... Ng4+ {[%clk 0:00:16.6]} 50.
Bxg4 {[%clk 0:00:18.4]} 50... Bxg4 {[%clk 0:00:18.5]} 51. Nf3 {[%clk 0:00:19.8]}
51... Kf6 {[%clk 0:00:19.9]} 52. Kg2 {[%clk 0:00:18.3]} 52... Bh5 {[%clk
0:00:20.9]} 53. Kf2 {[%clk 0:00:19.5]} 53... b4 {[%clk 0:00:21.3]} 54. cxb4
{[%clk 0:00:13]} 54... c3 {[%clk 0:00:23.2]} 55. b5 {[%clk 0:00:14.2]} 55... c2
{[%clk 0:00:06.9]} 56. Rc1 {[%clk 0:00:14.3]} 56... Rxb2 {[%clk 0:00:08.5]} 57.
b6 {[%clk 0:00:13.3]} 57... Bg6 {[%clk 0:00:09.7]} 58. Nd2 {[%clk 0:00:13]}
58... Rxb6 {[%clk 0:00:03.8]} 59. Rxc2 {[%clk 0:00:14.1]} 59... Rb4 {[%clk
0:00:05.3]} 60. Rc6 {[%clk 0:00:13.1]} 60... Bxe4 {[%clk 0:00:05.6]} 61. Rxd6+
{[%clk 0:00:13.7]} 61... Kf5 {[%clk 0:00:07.1]} 62. Rd8 {[%clk 0:00:09.4]} 62...
Rb2 {[%clk 0:00:07.8]} 63. Ke1 {[%clk 0:00:10.1]} 63... Bd3 {[%clk 0:00:06.9]}
64. d6 {[%clk 0:00:10.2]} 64... Ke6 {[%clk 0:00:08.2]} 65. d7 {[%clk 0:00:09.5]}
65... Rb5 {[%clk 0:00:07.3]} 66. Nf3 {[%clk 0:00:09.1]} 66... Be4 {[%clk
0:00:05]} 67. Ng5+ {[%clk 0:00:07.4]} 67... Ke7 {[%clk 0:00:04.4]} 68. Rh8
{[%clk 0:00:05.2]} 68... Rb1+ {[%clk 0:00:06.1]} 69. Kd2 {[%clk 0:00:05.7]}
69... Rb2+ {[%clk 0:00:07.5]} 70. Kc3 {[%clk 0:00:06.6]} 70... Rc2+ {[%clk
0:00:08.5]} 71. Kb3 {[%clk 0:00:08.1]} 71... Rd2 {[%clk 0:00:08.1]} 72. d8=Q+
{[%clk 0:00:07.5]} 72... Rxd8 {[%clk 0:00:08.7]} 73. Rxd8 {[%clk 0:00:09.4]}
73... Kxd8 {[%clk 0:00:08.6]} 74. Nxe4 {[%clk 0:00:10.9]} 74... Ke7 {[%clk
0:00:10.1]} 75. Kc3 {[%clk 0:00:12.4]} 75... Ke6 {[%clk 0:00:11.6]} 76. Kd3
{[%clk 0:00:13.9]} 76... Kf5 {[%clk 0:00:13.3]} 77. Nf2 {[%clk 0:00:15.5]} 77...
Kf6 {[%clk 0:00:12.3]} 78. Ke4 {[%clk 0:00:17]} 78... Ke6 {[%clk 0:00:13.8]} 79.
Ng4 {[%clk 0:00:18.3]} 79... f3 {[%clk 0:00:14.9]} 80. Kxf3 {[%clk 0:00:18.6]}
80... Kf5 {[%clk 0:00:16.8]} 81. Nf2 {[%clk 0:00:19.1]} 81... Kg5 {[%clk
0:00:15.2]} 82. Ke4 {[%clk 0:00:19.9]} 82... Kf6 {[%clk 0:00:16.8]} 83. h3
{[%clk 0:00:20.6]} 83... Kg5 {[%clk 0:00:16.6]} 84. Kxe5 {[%clk 0:00:18.9]}
84... Kh4 {[%clk 0:00:18.5]} 85. Kf4 {[%clk 0:00:20.5]} 85... Kh5 {[%clk
0:00:20]} 86. Kg3 {[%clk 0:00:21.3]} 86... Kg5 {[%clk 0:00:21.6]} 87. h4+ {[%clk
0:00:23.2]} 87... Kh5 {[%clk 0:00:23.5]} 88. Ne4 {[%clk 0:00:24.3]} 88... Kh6
{[%clk 0:00:25.1]} 89. Kg4 {[%clk 0:00:26.2]} 89... Kg6 {[%clk 0:00:26.6]} 90.
h5+ {[%clk 0:00:27.8]} 90... Kh6 {[%clk 0:00:28.5]} 91. Kh4 {[%clk 0:00:29.7]}
91... Kh7 {[%clk 0:00:30]} 92. Kg5 {[%clk 0:00:31.6]} 92... Kg7 {[%clk
0:00:31.9]} 93. h6+ {[%clk 0:00:33.5]} 93... Kh7 {[%clk 0:00:33.8]} 94. Ng3
{[%clk 0:00:35]} 94... Kh8 {[%clk 0:00:35.7]} 95. Kg6 {[%clk 0:00:36.9]} 95...
Kg8 {[%clk 0:00:36.8]} 96. Ne4 {[%clk 0:00:38.5]} 96... Kh8 {[%clk 0:00:38.7]}
97. Ng5 {[%clk 0:00:40.4]} 97... Kg8 {[%clk 0:00:40.4]} 98. h7+ {[%clk
0:00:41.8]} 98... Kh8 {[%clk 0:00:42.3]} 99. Nf7# {[%clk 0:00:43.2]} 1-0

[Event "*** Qualifier 3: Titled Tuesday 3|2 Blitz"]
[Site "Chess.com"]
[Date "2017.04.18"]
[Round "6"]
[White "RobertoJBM"]
[Black "Alexander_Moskalenko"]
[Result "1/2-1/2"]
[WhiteElo "2432"]
[BlackElo "2640"]
[TimeControl "180+2"]
[EndTime "14:24:00 PDT"]
[Termination "Game drawn by stalemate"]

1. d4 {[%clk 0:03:02]} 1... Nf6 {[%clk 0:03:00]} 2. Nf3 {[%clk 0:03:02.7]} 2...
e6 {[%clk 0:02:58.1]} 3. c4 {[%clk 0:03:01.1]} 3... Bb4+ {[%clk 0:02:58.6]} 4.
Bd2 {[%clk 0:03:00.9]} 4... a5 {[%clk 0:02:59.7]} 5. Nc3 {[%clk 0:02:59.7]} 5...
O-O {[%clk 0:03:00.2]} 6. g3 {[%clk 0:02:59.8]} 6... d6 {[%clk 0:02:56.6]} 7.
Bg2 {[%clk 0:03:00.5]} 7... Nbd7 {[%clk 0:02:58]} 8. O-O {[%clk 0:03:00.2]} 8...
e5 {[%clk 0:02:59.2]} 9. a3 {[%clk 0:02:48.1]} 9... Bxc3 {[%clk 0:02:57.5]} 10.
Bxc3 {[%clk 0:02:50]} 10... e4 {[%clk 0:02:47.5]} 11. Nd2 {[%clk 0:02:49]} 11...
Re8 {[%clk 0:02:48.9]} 12. e3 {[%clk 0:02:48.1]} 12... c6 {[%clk 0:02:48.2]} 13.
b4 {[%clk 0:02:46.9]} 13... axb4 {[%clk 0:02:47.2]} 14. axb4 {[%clk 0:02:48.8]}
14... Rxa1 {[%clk 0:02:48.6]} 15. Qxa1 {[%clk 0:02:50.4]} 15... d5 {[%clk
0:02:50.5]} 16. b5 {[%clk 0:02:34.5]} 16... Nf8 {[%clk 0:02:46.8]} 17. bxc6
{[%clk 0:02:34.6]} 17... bxc6 {[%clk 0:02:47.5]} 18. Ba5 {[%clk 0:02:33.4]}
18... Qe7 {[%clk 0:02:44.6]} 19. cxd5 {[%clk 0:02:30.2]} 19... cxd5 {[%clk
0:02:45.3]} 20. Rc1 {[%clk 0:02:30.7]} 20... Bg4 {[%clk 0:02:35.8]} 21. Nb3
{[%clk 0:02:29]} 21... h5 {[%clk 0:02:30.1]} 22. Qc3 {[%clk 0:02:18.9]} 22...
Rc8 {[%clk 0:02:25.5]} 23. Nc5 {[%clk 0:02:16.9]} 23... h4 {[%clk 0:02:25.3]}
24. Bb4 {[%clk 0:02:15.4]} 24... Ng6 {[%clk 0:02:19.2]} 25. Qd2 {[%clk
0:02:08.9]} 25... Qa7 {[%clk 0:02:10.8]} 26. Nb3 {[%clk 0:02:04.5]} 26... Rb8
{[%clk 0:02:06.1]} 27. Na5 {[%clk 0:02:04.2]} 27... Qd7 {[%clk 0:02:03]} 28. Nc6
{[%clk 0:02:02.9]} 28... Re8 {[%clk 0:02:03.3]} 29. Qb2 {[%clk 0:01:45.4]} 29...
hxg3 {[%clk 0:01:52.1]} 30. hxg3 {[%clk 0:01:45]} 30... Bf3 {[%clk 0:01:45.8]}
31. Ne5 {[%clk 0:01:43.7]} 31... Nxe5 {[%clk 0:01:26.7]} 32. dxe5 {[%clk
0:01:45.6]} 32... Bxg2 {[%clk 0:01:26]} 33. Kxg2 {[%clk 0:01:47.5]} 33... Ng4
{[%clk 0:01:24.7]} 34. Bd6 {[%clk 0:01:46.8]} 34... Qf5 {[%clk 0:01:17.5]} 35.
Qe2 {[%clk 0:01:37.5]} 35... Re6 {[%clk 0:01:16]} 36. Rh1 {[%clk 0:01:29.6]}
36... Rg6 {[%clk 0:01:14.5]} 37. Rh4 {[%clk 0:01:27.6]} 37... Nxe5 {[%clk
0:00:59.7]} 38. Bxe5 {[%clk 0:01:29.5]} 38... Qxe5 {[%clk 0:01:01.5]} 39. Qh5
{[%clk 0:01:29.9]} 39... Qxh5 {[%clk 0:01:01]} 40. Rxh5 {[%clk 0:01:31.8]} 40...
Rd6 {[%clk 0:01:02.8]} 41. Rh1 {[%clk 0:01:32.4]} 41... d4 {[%clk 0:01:03.2]}
42. exd4 {[%clk 0:01:33.7]} 42... Rxd4 {[%clk 0:01:05.1]} 43. Ra1 {[%clk
0:01:33.9]} 43... Kh7 {[%clk 0:01:04.6]} 44. Ra6 {[%clk 0:01:32.7]} 44... f6
{[%clk 0:01:05]} 45. Kf1 {[%clk 0:01:33.5]} 45... Kg6 {[%clk 0:01:04.8]} 46. Ke2
{[%clk 0:01:34.2]} 46... Kf5 {[%clk 0:01:04.1]} 47. Ra5+ {[%clk 0:01:33.6]}
47... Kg4 {[%clk 0:01:01.7]} 48. Ra7 {[%clk 0:01:34.4]} 48... g5 {[%clk
0:01:02.4]} 49. Re7 {[%clk 0:01:33.3]} 49... Rb4 {[%clk 0:01:02.7]} 50. Rc7
{[%clk 0:01:29.7]} 50... Rb2+ {[%clk 0:01:02.8]} 51. Ke3 {[%clk 0:01:26.6]}
51... f5 {[%clk 0:01:04.1]} 52. Rg7 {[%clk 0:01:26.6]} 52... Ra2 {[%clk
0:01:03.6]} 53. Rg8 {[%clk 0:01:27.2]} 53... Ra3+ {[%clk 0:00:56.3]} 54. Ke2
{[%clk 0:01:27.9]} 54... Ra7 {[%clk 0:00:58.2]} 55. Ke3 {[%clk 0:01:26.3]} 55...
Ra3+ {[%clk 0:00:52.9]} 56. Ke2 {[%clk 0:01:26.8]} 56... Rf3 {[%clk 0:00:43.5]}
57. Rg7 {[%clk 0:01:24.8]} 57... Ra3 {[%clk 0:00:42.6]} 58. Rg8 {[%clk
0:01:25.2]} 58... Ra5 {[%clk 0:00:43.2]} 59. Ke3 {[%clk 0:01:21.7]} 59... Rd5
{[%clk 0:00:44.1]} 60. Ke2 {[%clk 0:01:20.2]} 60... Re5 {[%clk 0:00:41.1]} 61.
Ke3 {[%clk 0:01:19.4]} 61... Re7 {[%clk 0:00:42.1]} 62. Ke2 {[%clk 0:01:19.2]}
62... e3 {[%clk 0:00:43]} 63. f3+ {[%clk 0:01:15.1]} 63... Kxg3 {[%clk
0:00:43.8]} 64. Rxg5+ {[%clk 0:01:15.4]} 64... Kf4 {[%clk 0:00:45.2]} 65. Rh5
{[%clk 0:01:16]} 65... Ra7 {[%clk 0:00:41.6]} 66. Rh4+ {[%clk 0:01:16.6]} 66...
Kg3 {[%clk 0:00:42.7]} 67. Rh8 {[%clk 0:01:18.1]} 67... Kf4 {[%clk 0:00:33.3]}
68. Rh4+ {[%clk 0:01:17.8]} 68... Kg3 {[%clk 0:00:34.3]} 69. Rh8 {[%clk
0:01:18.4]} 69... Ra2+ {[%clk 0:00:30.2]} 70. Kxe3 {[%clk 0:01:19.3]} 70... f4+
{[%clk 0:00:29.8]} 71. Ke4 {[%clk 0:01:19.6]} 71... Ra4+ {[%clk 0:00:29.8]} 72.
Kf5 {[%clk 0:01:20.2]} 72... Kxf3 {[%clk 0:00:31]} 73. Rh3+ {[%clk 0:01:20.7]}
73... Kg2 {[%clk 0:00:31.7]} 74. Rh4 {[%clk 0:01:18]} 74... Kg3 {[%clk
0:00:32.6]} 75. Rg4+ {[%clk 0:01:18.7]} 75... Kf3 {[%clk 0:00:32.9]} 76. Kg5
{[%clk 0:01:15.7]} 76... Ra5+ {[%clk 0:00:31.4]} 77. Kh4 {[%clk 0:01:16.7]}
77... Ke3 {[%clk 0:00:31.1]} 78. Rg8 {[%clk 0:01:14.2]} 78... Kf3 {[%clk
0:00:25.1]} 79. Rb8 {[%clk 0:01:07.2]} 79... Ra2 {[%clk 0:00:19.7]} 80. Rb3+
{[%clk 0:00:58.4]} 80... Kg2 {[%clk 0:00:20.7]} 81. Kg4 {[%clk 0:00:58.8]} 81...
Rf2 {[%clk 0:00:22.1]} 82. Rh3 {[%clk 0:00:53.6]} 82... Rf1 {[%clk 0:00:22.1]}
83. Rh8 {[%clk 0:00:34.2]} 83... Rf3 {[%clk 0:00:22.6]} 84. Rh2+ {[%clk
0:00:33.4]} 84... Kxh2 {[%clk 0:00:21.1]} 85. Kxf3 {[%clk 0:00:32.3]} 85... Kh3
{[%clk 0:00:22.2]} 86. Kf2 {[%clk 0:00:17.7]} 86... Kg4 {[%clk 0:00:22.3]} 87.
Kg2 {[%clk 0:00:18.5]} 87... f3+ {[%clk 0:00:23.5]} 88. Kf2 {[%clk 0:00:19.6]}
88... Kf4 {[%clk 0:00:25.4]} 89. Kf1 {[%clk 0:00:20.4]} 89... Ke3 {[%clk
0:00:27.3]} 90. Ke1 {[%clk 0:00:21.4]} 90... f2+ {[%clk 0:00:28]} 91. Kf1 {[%clk
0:00:22.2]} 91... Kf3 {[%clk 0:00:27]} 1/2-1/2

[Event "*** Qualifier 3: Titled Tuesday 3|2 Blitz"]
[Site "Chess.com"]
[Date "2017.04.18"]
[Round "6"]
[White "Aygehovit1992"]
[Black "pKiLz5Rn9b"]
[Result "1-0"]
[WhiteElo "2430"]
[BlackElo "2457"]
[TimeControl "180+2"]
[EndTime "14:25:34 PDT"]
[Termination "Aygehovit1992 won by resignation"]

1. e4 {[%clk 0:03:02]} 1... e6 {[%clk 0:03:00.8]} 2. Qe2 {[%clk 0:03:02.5]} 2...
Be7 {[%clk 0:03:01.5]} 3. b3 {[%clk 0:03:02]} 3... d5 {[%clk 0:03:00.5]} 4. exd5
{[%clk 0:03:02.5]} 4... Qxd5 {[%clk 0:02:58.6]} 5. Bb2 {[%clk 0:03:02.9]} 5...
Nf6 {[%clk 0:02:59.7]} 6. Nf3 {[%clk 0:03:02]} 6... O-O {[%clk 0:03:00.4]} 7.
Nc3 {[%clk 0:03:02.7]} 7... Qd8 {[%clk 0:02:58.8]} 8. g3 {[%clk 0:03:04]} 8...
b6 {[%clk 0:02:57.6]} 9. Bg2 {[%clk 0:03:05.2]} 9... Bb7 {[%clk 0:02:59]} 10.
O-O {[%clk 0:03:06.8]} 10... Nbd7 {[%clk 0:02:59.5]} 11. d4 {[%clk 0:03:04.5]}
11... c5 {[%clk 0:03:00.4]} 12. Rad1 {[%clk 0:03:03.9]} 12... Rc8 {[%clk
0:02:55.8]} 13. Nb5 {[%clk 0:02:54.5]} 13... a6 {[%clk 0:02:51.3]} 14. Na3
{[%clk 0:02:33.4]} 14... b5 {[%clk 0:02:49.2]} 15. c4 {[%clk 0:02:34.5]} 15...
b4 {[%clk 0:02:49.1]} 16. Nc2 {[%clk 0:02:35.2]} 16... Qc7 {[%clk 0:02:35.1]}
17. d5 {[%clk 0:02:30.7]} 17... exd5 {[%clk 0:02:31.2]} 18. Qxe7 {[%clk
0:02:30.4]} 18... Rfe8 {[%clk 0:02:28.9]} 19. Bxf6 {[%clk 0:02:31.3]} 19... gxf6
{[%clk 0:02:06.3]} 20. Qxe8+ {[%clk 0:02:31.7]} 20... Rxe8 {[%clk 0:02:07]} 21.
cxd5 {[%clk 0:02:33.3]} 21... Nb6 {[%clk 0:02:04.7]} 22. d6 {[%clk 0:02:34]}
22... Qd7 {[%clk 0:02:05.1]} 23. Ne3 {[%clk 0:02:33.1]} 23... Be4 {[%clk
0:01:47.9]} 24. Rd2 {[%clk 0:02:31.2]} 24... Rd8 {[%clk 0:01:46.1]} 25. Rfd1
{[%clk 0:02:31.2]} 25... a5 {[%clk 0:01:37]} 26. Ne5 {[%clk 0:02:27.9]} 26...
fxe5 {[%clk 0:01:32.6]} 27. Bxe4 {[%clk 0:02:28.3]} 27... a4 {[%clk 0:01:20.5]}
28. Bf5 {[%clk 0:02:27.9]} 28... Qc6 {[%clk 0:01:19.6]} 29. d7 {[%clk
0:02:29.2]} 29... axb3 {[%clk 0:01:04.8]} 30. axb3 {[%clk 0:02:28.2]} 30... c4
{[%clk 0:01:05.7]} 31. bxc4 {[%clk 0:02:27]} 31... Na4 {[%clk 0:01:01.3]} 32.
Nd5 {[%clk 0:02:16.6]} 32... Qxc4 {[%clk 0:00:48.7]} 33. Rc2 {[%clk 0:02:13.4]}
33... Qb3 {[%clk 0:00:36.1]} 34. Re1 {[%clk 0:01:56]} 34... Kg7 {[%clk
0:00:22.5]} 35. Ne3 {[%clk 0:01:39.9]} 35... Nc3 {[%clk 0:00:21.7]} 36. Rd2
{[%clk 0:01:31.5]} 36... Qa4 {[%clk 0:00:20.6]} 37. Rd3 {[%clk 0:01:27.9]} 37...
Qb5 {[%clk 0:00:20.4]} 38. h4 {[%clk 0:01:16.3]} 38... e4 {[%clk 0:00:21]} 39.
Rd2 {[%clk 0:01:11.4]} 39... b3 {[%clk 0:00:21.2]} 40. Rb2 {[%clk 0:01:06.6]}
40... Na4 {[%clk 0:00:21.8]} 41. Rbb1 {[%clk 0:01:07.9]} 41... b2 {[%clk
0:00:20.7]} 42. Bxe4 {[%clk 0:01:05.8]} 42... Nc3 {[%clk 0:00:17.8]} 43. Bf5
{[%clk 0:01:05.8]} 43... h5 {[%clk 0:00:11.5]} 44. Rbd1 {[%clk 0:00:19.7]} 44...
Nxd1 {[%clk 0:00:12]} 45. Rxd1 {[%clk 0:00:20.9]} 45... Qc5 {[%clk 0:00:11.2]}
46. Bc2 {[%clk 0:00:19]} 46... Qc6 {[%clk 0:00:10]} 47. Rb1 {[%clk 0:00:12.4]}
47... Qc3 {[%clk 0:00:08.2]} 48. Rd1 {[%clk 0:00:06.2]} 48... Qc6 {[%clk
0:00:06.8]} 49. Rb1 {[%clk 0:00:04.1]} 49... Rxd7 {[%clk 0:00:08.1]} 50. Rxb2
{[%clk 0:00:05.2]} 50... Rd2 {[%clk 0:00:09.2]} 51. Nf5+ {[%clk 0:00:02.8]}
51... Kf6 {[%clk 0:00:08]} 52. Ne3 {[%clk 0:00:03.1]} 52... Qc5 {[%clk
0:00:05.5]} 53. Ra2 {[%clk 0:00:03.3]} 53... Kg7 {[%clk 0:00:05.8]} 54. Nf5+
{[%clk 0:00:02.7]} 54... Kf6 {[%clk 0:00:07]} 55. Ne3 {[%clk 0:00:04.3]} 55...
Qb5 {[%clk 0:00:06.6]} 56. Kg2 {[%clk 0:00:03.9]} 56... Qc6+ {[%clk 0:00:07.2]}
57. Kg1 {[%clk 0:00:05.3]} 57... Qf3 {[%clk 0:00:08]} 58. Ra6+ {[%clk
0:00:05.5]} 58... Ke7 {[%clk 0:00:08.8]} 59. Nf5+ {[%clk 0:00:06.2]} 59... Kd7
{[%clk 0:00:10.3]} 60. Ba4+ {[%clk 0:00:07.2]} 60... Kc7 {[%clk 0:00:11.4]} 61.
Rc6+ {[%clk 0:00:08.1]} 61... Kb7 {[%clk 0:00:12.8]} 62. Nd6+ {[%clk 0:00:09.2]}
62... Ka7 {[%clk 0:00:08.8]} 63. Rc7+ {[%clk 0:00:09.4]} 63... Kb6 {[%clk
0:00:08.2]} 64. Rb7+ {[%clk 0:00:05.1]} 64... Kc5 {[%clk 0:00:04.6]} 65. Rc7+
{[%clk 0:00:06.4]} 65... Kxd6 {[%clk 0:00:02.9]} 66. Rd7+ {[%clk 0:00:07.3]}
66... Ke6 {[%clk 0:00:04.4]} 67. Rxd2 {[%clk 0:00:09.2]} 67... Qa3 {[%clk
0:00:05.9]} 68. Bd1 {[%clk 0:00:09.6]} 68... Qc1 {[%clk 0:00:06.4]} 69. Rd3
{[%clk 0:00:10]} 69... Ke5 {[%clk 0:00:07.2]} 70. Kf1 {[%clk 0:00:11]} 70... Qc4
{[%clk 0:00:07.2]} 71. Be2 {[%clk 0:00:10.6]} 71... Qc1+ {[%clk 0:00:08.3]} 72.
Kg2 {[%clk 0:00:11.2]} 72... Qc6+ {[%clk 0:00:09.3]} 73. Bf3 {[%clk 0:00:12.6]}
73... Qc4 {[%clk 0:00:06.2]} 74. Rd5+ {[%clk 0:00:13.3]} 74... Kf6 {[%clk
0:00:06.2]} 75. Rxh5 {[%clk 0:00:14.7]} 75... Qc3 {[%clk 0:00:03.5]} 76. Rd5
{[%clk 0:00:15.5]} 76... Ke6 {[%clk 0:00:04.9]} 77. Rg5 {[%clk 0:00:15.2]} 77...
f6 {[%clk 0:00:05.5]} 78. Rg4 {[%clk 0:00:16]} 78... f5 {[%clk 0:00:06.4]} 79.
Rf4 {[%clk 0:00:17.2]} 79... Ke5 {[%clk 0:00:07.9]} 80. h5 {[%clk 0:00:18.2]}
80... Qc7 {[%clk 0:00:06.1]} 81. Kh2 {[%clk 0:00:19.1]} 81... Qh7 {[%clk
0:00:06.4]} 82. Kg2 {[%clk 0:00:19.8]} 82... Qc7 {[%clk 0:00:07.2]} 83. h6
{[%clk 0:00:20.6]} 83... Qh7 {[%clk 0:00:07.5]} 84. Rh4 {[%clk 0:00:21.7]} 84...
Kf6 {[%clk 0:00:07.1]} 85. Kh2 {[%clk 0:00:22.4]} 85... Kg5 {[%clk 0:00:08.3]}
86. Be2 {[%clk 0:00:22.6]} 86... Kf6 {[%clk 0:00:07.5]} 87. Bd3 {[%clk
0:00:22.7]} 87... Kg5 {[%clk 0:00:06.4]} 88. Be2 {[%clk 0:00:22.9]} 88... Kf6
{[%clk 0:00:06.9]} 89. Rh5 {[%clk 0:00:23.3]} 89... Kg6 {[%clk 0:00:05.2]} 90.
Kg2 {[%clk 0:00:23.4]} 90... Qb7+ {[%clk 0:00:05.5]} 91. Bf3 {[%clk 0:00:24.3]}
91... Qh7 {[%clk 0:00:06.9]} 92. Rh4 {[%clk 0:00:22.3]} 92... Kg5 {[%clk
0:00:06.9]} 93. Kh2 {[%clk 0:00:21.7]} 93... Kg6 {[%clk 0:00:07.1]} 94. Bd1
{[%clk 0:00:22.5]} 94... Kg5 {[%clk 0:00:05.5]} 95. Bc2 {[%clk 0:00:23.5]} 95...
Kg6 {[%clk 0:00:03.9]} 96. Kh3 {[%clk 0:00:23.6]} 96... Kg5 {[%clk 0:00:04.4]}
97. f4+ {[%clk 0:00:24.1]} 97... Kf6 {[%clk 0:00:05.4]} 98. Rh5 {[%clk 0:00:25]}
98... Ke7 {[%clk 0:00:02.4]} 99. Bxf5 {[%clk 0:00:25.1]} 99... Qf7 {[%clk
0:00:02.8]} 100. Rg5 {[%clk 0:00:24.2]} 100... Qd5 {[%clk 0:00:04.1]} 101. h7
{[%clk 0:00:24.5]} 101... Qh1+ {[%clk 0:00:03.7]} 102. Kg4 {[%clk 0:00:25.6]}
102... Qd1+ {[%clk 0:00:05]} 103. Kh4 {[%clk 0:00:25]} 103... Qh1+ {[%clk
0:00:04.1]} 104. Bh3 {[%clk 0:00:26]} 104... Qa1 {[%clk 0:00:04.9]} 105. Re5+
{[%clk 0:00:18.3]} 1-0

[Event "*** Qualifier 3: Titled Tuesday 3|2 Blitz"]
[Site "Chess.com"]
[Date "2017.04.18"]
[Round "7"]
[White "rasmussvane"]
[Black "PelinGorki"]
[Result "0-1"]
[WhiteElo "2515"]
[BlackElo "2380"]
[TimeControl "180+2"]
[EndTime "14:28:01 PDT"]
[Termination "PelinGorki won by checkmate"]

1. d4 {[%clk 0:03:02]} 1... Nf6 {[%clk 0:03:00.3]} 2. c4 {[%clk 0:03:03]} 2...
e5 {[%clk 0:03:01]} 3. dxe5 {[%clk 0:03:03.6]} 3... Ng4 {[%clk 0:03:02.4]} 4.
Bf4 {[%clk 0:03:04.3]} 4... g5 {[%clk 0:03:03.4]} 5. Bg3 {[%clk 0:03:04.5]} 5...
Bg7 {[%clk 0:03:05.2]} 6. Nf3 {[%clk 0:03:05.3]} 6... Nc6 {[%clk 0:03:06]} 7. h4
{[%clk 0:02:59.7]} 7... Ngxe5 {[%clk 0:03:06.8]} 8. Nxe5 {[%clk 0:02:54.8]} 8...
Nxe5 {[%clk 0:03:08.7]} 9. hxg5 {[%clk 0:02:33.6]} 9... Nxc4 {[%clk 0:03:07.6]}
10. Nc3 {[%clk 0:02:22.2]} 10... Qxg5 {[%clk 0:03:08.6]} 11. Qb3 {[%clk
0:02:16]} 11... Qd2# {[%clk 0:03:01.1]} 0-1

[Event "*** Qualifier 3: Titled Tuesday 3|2 Blitz"]
[Site "Chess.com"]
[Date "2017.04.18"]
[Round "7"]
[White "daro94"]
[Black "SabinaFoisor"]
[Result "1-0"]
[WhiteElo "2744"]
[BlackElo "2245"]
[TimeControl "180+2"]
[EndTime "14:30:22 PDT"]
[Termination "daro94 won by resignation"]

1. g3 {[%clk 0:03:02]} 1... d5 {[%clk 0:02:59.4]} 2. Bg2 {[%clk 0:03:01.6]} 2...
e6 {[%clk 0:02:58.5]} 3. c4 {[%clk 0:03:02.2]} 3... Nf6 {[%clk 0:02:54.4]} 4.
Nf3 {[%clk 0:03:03.3]} 4... dxc4 {[%clk 0:02:51.7]} 5. Qa4+ {[%clk 0:03:02.7]}
5... Bd7 {[%clk 0:02:50.8]} 6. Qxc4 {[%clk 0:03:03.9]} 6... c5 {[%clk
0:02:49.9]} 7. Ne5 {[%clk 0:03:02.7]} 7... Nc6 {[%clk 0:02:49.1]} 8. Nxc6 {[%clk
0:03:00.1]} 8... Bxc6 {[%clk 0:02:48.8]} 9. Bxc6+ {[%clk 0:03:01.2]} 9... bxc6
{[%clk 0:02:50.4]} 10. d3 {[%clk 0:02:55.9]} 10... Qd5 {[%clk 0:02:41.2]} 11.
O-O {[%clk 0:02:56.5]} 11... Be7 {[%clk 0:02:27.6]} 12. Nc3 {[%clk 0:02:55.7]}
12... Qxc4 {[%clk 0:02:26]} 13. dxc4 {[%clk 0:02:57.6]} 13... Nd7 {[%clk
0:02:24.4]} 14. b3 {[%clk 0:02:52.1]} 14... f5 {[%clk 0:02:21.2]} 15. Ba3 {[%clk
0:02:49.5]} 15... Bf6 {[%clk 0:02:14.2]} 16. Rac1 {[%clk 0:02:49.9]} 16... Bxc3
{[%clk 0:02:13.1]} 17. Rxc3 {[%clk 0:02:51.2]} 17... a5 {[%clk 0:02:01.2]} 18.
Rd1 {[%clk 0:02:52.2]} 18... Ke7 {[%clk 0:01:52.9]} 19. Rcd3 {[%clk 0:02:50.7]}
19... Rhd8 {[%clk 0:01:53.6]} 20. Rd6 {[%clk 0:02:39.5]} 20... a4 {[%clk
0:01:37.4]} 21. bxa4 {[%clk 0:02:37.8]} 21... Rac8 {[%clk 0:01:19.7]} 22. a5
{[%clk 0:02:33.5]} 22... Rc7 {[%clk 0:01:17.6]} 23. Bxc5 {[%clk 0:02:29.2]} 1-0